Cogmind - Beta 16 --- EXPLORER MODE // 2026.01.08 @ 17:15:53 Player: K.K.Y. Result: Destroyed by Q3-7WD(R) with Subdweller Machine Gun Performance ------------- Evolutions (0) 0 Regions Visited (3) 600 Robots Destroyed (36) 180 Value Destroyed (1093) 1093 Prototype IDs (1) 20 Alien Tech Used (0) 0 Bonus (0) 0 TOTAL SCORE: 1893 Bonus ------- None Cogmind --------- Core Integrity 0/250 Matter 255/300 Energy 100/100 System Corruption 0% Temperature Cool (0) Movement Treading (250) Ox1 Location -10/Subcaves Parts ------- > --- POWER (1) -------- (None) > --- PROPULSION (2) --- Light Treads Spiked Treads > --- UTILITY (3) ------ High-capacity Storage Unit Sensor Array Core Shielding > --- WEAPON (2) ------- Barrage Gun Slug Cannon > --- INVENTORY (20) --- Experimental Sensor Array Improved Terrain Scanner Mining Laser Plasma Cutter Ripper SUBCON Basin (Full) Peak State ------------ > --- POWER ------------ Light Nuclear Core > --- PROPULSION ------- Light Treads Spiked Treads > --- UTILITY ---------- High-capacity Storage Unit Sensor Array Core Shielding > --- WEAPON ----------- Barrage Gun Slug Cannon > --- INVENTORY -------- Experimental Sensor Array Improved Terrain Scanner Mining Laser Plasma Cutter Ripper SUBCON Basin [Rating: 35] Favorites ----------- Power Ion Engine Engine Ion Engine Power Core Light Nuclear Core Propulsion Light Treads Treads Light Treads Utility Sensor Array Device Sensor Array Storage Large Storage Unit Protection Core Shielding Weapon Beam Rifle Energy Gun Beam Rifle Energy Cannon Subdweller Beam Cannon Ballistic Gun Barrage Gun Ballistic Cannon Slug Cannon Special Weapon Mining Laser Build | -11 -10 -10 -10 ------- Run | Yrd Mat Min Sub Slots Evolved 1 | . 1 . . Power . | . . . . Propulsion . | . . . . Utility 1 | . 1 . . Weapon . | . . . . Parts Attached 28 | 6 9 3 10 Power 2 | 1 . . 1 Engine 1 | 1 . . . Core 1 | . . . 1 Reactor . | . . . . Propulsion 6 | 2 1 1 2 Treads 6 | 2 1 1 2 Leg . | . . . . Wheel . | . . . . Hover . | . . . . Flight . | . . . . Utility 10 | 2 5 1 2 Device 4 | . 2 1 1 Storage 3 | . 3 . . Processor . | . . . . Hackware . | . . . . Protection 3 | 2 . . 1 Artifact . | . . . . Weapon 10 | 1 3 1 5 Energy Gun 5 | 1 1 1 2 Energy Cannon 1 | . . . 1 Ballistic Gun 1 | . . . 1 Ballistic Cannon 1 | . . . 1 Launcher . | . . . . Special Weapon 2 | . 2 . . Impact Weapon . | . . . . Slashing Weapon . | . . . . Piercing Weapon . | . . . . Special Melee Weapon . | . . . . Unidentified Prototypes 1 | . . 1 . Parts Lost 6 | . . . 6 Power 2 | . . . 2 Propulsion 1 | . . . 1 Utility 3 | . . . 3 Weapon . | . . . . Highest Loss Streak 3 | . . . 3 To Critical Strikes . | . . . . Average Backups 9 | 3 9 15 8 Power . | . . 1 . Propulsion . | . . 1 . Utility 4 | 1 5 7 4 Weapon 3 | . 2 5 2 Tool/Special . | . . . . Unused Backups 11 | . 3 1 7 Power . | . . . . Propulsion . | . . . . Utility 4 | . . 1 3 Weapon 6 | . 3 . 3 Tool/Special 1 | . . . 1 Average Slot Usage (%) 94 | . 92 100 93 Engine 6 | . 12 12 2 Core 4 | . . . 7 Treads 23 | . 25 25 22 Device 14 | . 8 25 13 Storage 11 | . 10 12 12 Protection 7 | . 11 . 8 Energy Gun 14 | . 11 24 11 Energy Cannon 1 | . . . 1 Ballistic Gun 3 | . . . 5 Ballistic Cannon 3 | . . . 5 Special Weapon 2 | . 10 . . Peak Build Rating 35 | 6 12 19 35 Average Rating 19 | 4 9 18 24 On Entrance 9 | . 6 12 19 Avg Prop Armor Cover (%) . | . . . . Naked Turns . | . . . . Heaviest Build 57 | 11 33 40 57 Greatest Support 40 | 40 40 40 40 Greatest Overweight (x) 1 | 1 . . 1 Average Overweight (x) . | . . . . Largest Inventory Capacity 20 | 5 20 15 20 Average Capacity 15 | 5 10 15 17 Most Carried 20 | 5 15 15 20 Average Carried 13 | 3 9 14 15 Final Capacity 20 | 5 15 15 20 Final Carried 20 | 4 15 15 20 Class Distribution -------------------- 100% | Hacker-Mutant Dominant Class ---------------- Hacker-Mutant | -10/Materials Hacker-Mutant | -10/Mines Hacker-Mutant | -10/Subcaves Resources | -11 -10 -10 -10 ----------- Run | Yrd Mat Min Sub Matter Collected 556 | 260 51 115 130 Remotely . | . . . . Salvage Created 1263 | 152 307 363 441 Parts 63 | 9 15 13 26 Haulers Intercepted 2 | . 2 . . Recyclers Shooed . | . . . . Parts Field Recycled . | . . . . Retrieved Matter . | . . . . Parts Self-Destructed . | . . . . Prevented . | . . . . Parts Restored . | . . . . Kills | -11 -10 -10 -10 ------- Run | Yrd Mat Min Sub Combat Hostiles Destroyed 26 | . 8 8 10 Guns 20 | . 4 8 8 Cannons 6 | . 4 . 2 Classes Destroyed 9 | 2 4 . 3 Tunneler 3 | 3 . . . Hauler 2 | . 2 . . Recycler 1 | 1 . . . Turret 1 | . . . 1 Watcher 3 | . 3 . . Swarmer 2 | . 2 . . Grunt 14 | . 6 8 . Artisan 1 | . . . 1 Subdweller 10 | . . . 10 Best Kill Streak 4 | 2 4 2 2 Combat Bots Only 3 | . 3 2 2 Max Kills in Single Turn 1 | 1 1 1 1 Gunslinging . | . . . . Exploded . | . . . . Melee . | . . . . Uniques/NPCs Destroyed . | . . . . Combat | -11 -10 -10 -10 -------- Run | Yrd Mat Min Sub Hostile Shots Fired 192 | . 53 41 98 Missed 59 | . 12 5 42 Hits 133 | . 41 36 56 Projectile 133 | . 41 36 56 AOE 2 | . . . 2 Critical Strikes 2 | . . 1 1 Actively Blocked 1 | . . . 1 Damage Taken 1501 | . 256 368 877 Core 258 | . 22 128 108 Absorbed by Shields . | . . . . Redirected to Shielding 13 | . . . 13 Ignored by Resistances 814 | . 170 184 460 Core Remaining (%) 100 | 100 . . . Volleys Fired 134 | 14 37 29 54 Largest 2 | 1 2 2 2 Hottest 156 | 50 156 112 136 Shots Fired 232 | 14 53 57 108 Gun 204 | 14 37 57 96 Cannon 12 | . . . 12 Launcher . | . . . . Special 16 | . 16 . . Kinetic 10 | . . . 10 Thermal 222 | 14 53 57 98 Explosive . | . . . . Electromagnetic . | . . . . Robot Hit Streak 48 | 14 42 44 48 Robot Miss Streak 1 | . 1 1 1 Penetration Max . | . . . . Secondary Targets 4 | . . 2 2 Max Gunslinging Chain 1 | . . 1 1 Shots Hit Robots 199 | 14 45 51 89 Core Hits 59 | 5 18 15 21 Critical Kills . | . . . . Critical Parts Destroyed . | . . . . Critical Strikes 17 | 1 2 7 7 Burn 17 | 1 2 7 7 Melee Attacks . | . . . . Impact . | . . . . Slashing . | . . . . Piercing . | . . . . Sneak Attacks . | . . . . Combat Hostiles . | . . . . Follow-up Attacks . | . . . . Damage Inflicted 2729 | 173 704 725 1127 Guns 2360 | 173 416 725 1046 Cannons 81 | . . . 81 Explosions . | . . . . Melee . | . . . . Ramming . | . . . . Kinetic . | . . . . Thermal 2729 | 173 704 725 1127 Explosive . | . . . . Electromagnetic . | . . . . Impact . | . . . . Slashing . | . . . . Piercing . | . . . . Highest Corruption . | . . . . Average Corruption . | . . . . Corruption Purged . | . . . . Corruption Blocked . | . . . . Overload Shots . | . . . . Overflow Damage . | . . . . Projectiles . | . . . . Explosions . | . . . . Melee . | . . . . Knockbacks . | . . . . Impact . | . . . . Kinetic . | . . . . Secondary . | . . . . Self-Inflicted Damage . | . . . . Shots . | . . . . Rammed . | . . . . Targets Rammed . | . . . . Kicked . | . . . . Crushed . | . . . . Highest Temperature 631 | 128 302 631 66 Average Temperature 115 | 54 100 184 19 Received Heat Transfer 639 | . 156 291 192 Effects 14 | . 1 13 . Shutdowns 2 | . . 2 . Energy Bleed 3 | . . 3 . Interference 1 | . 1 . . Matter Decay 1 | . . 1 . Damage (minor) 1 | . . 1 . Damage (major) 4 | . . 4 . Damage (core) 2 | . . 2 . Siege Activations . | . . . . Martial Activations . | . . . . Shielding Activations . | . . . . Robots Disrupted . | . . . . Combat Hostiles . | . . . . Robots Corrupted . | . . . . Combat Hostiles . | . . . . Parts Fried . | . . . . Impact Corruptions . | . . . . Robots Melted . | . . . . Combat Hostiles . | . . . . Parts Melted 17 | 2 4 7 4 Heat Transferred 8222 | 592 1969 2368 3293 Parts Sabotaged . | . . . . Parts Stolen . | . . . . Parts Stripped . | . . . . Power Chain Reactions . | . . . . Alert | -11 -10 -10 -10 ------- Run | Yrd Mat Min Sub Maximum Alert Level . | . . . . Low Security (%) 100 | 100 100 100 . Level 1 . | . . . . Level 2 . | . . . . Level 3 . | . . . . Level 4 . | . . . . Level 5 . | . . . . High Security . | . . . . Max Security . | . . . . Peak Influence 85 | 10 85 35 . Initial . | . . . . Average 4 | . 6 2 . Influence Increases 526 | 20 271 215 20 Destroy 0b10 Robot/C 340 | . 160 160 20 Destroy 0b10 Robot/NC 45 | 20 25 . . Destroy Leader 80 | . 40 40 . Successful Hack 10 | . 10 . . Disable Machine 4 | . 4 . . Destroy Structure 2 | . 2 . . Lose Combat Pursuer 45 | . 30 15 . Influence Decreases 526 | 20 271 215 20 Time Decay 526 | 20 271 215 20 Squads Dispatched . | . . . . Investigation . | . . . . Extermination . | . . . . Reinforcement . | . . . . Assault . | . . . . Garrison . | . . . . Intercept . | . . . . Searches Triggered . | . . . . Construction Impeded . | . . . . Haulers Reinforced . | . . . . Active Scanning Responses . | . . . . Cargo Convoy Interrupts . | . . . . Stealth | -11 -10 -10 -10 --------- Run | Yrd Mat Min Sub Distress Signals 1 | . 1 . . Communications Jammed . | . . . . Distress Signals . | . . . . Times Spotted 36 | . 14 9 13 Peak Tracking Total 3 | . 3 2 2 Tactical Retreats 3 | . 2 1 . Traps | -11 -10 -10 -10 ------- Run | Yrd Mat Min Sub Traps Triggered 4 | . 2 . 2 Indirectly . | . . . . Trap Hack Attempts . | . . . . Triggered . | . . . . Disarmed . | . . . . Reprogrammed 9 | . 9 . . Reused . | . . . . Traps Extracted . | . . . . Installed . | . . . . Triggered . | . . . . Machines | -11 -10 -10 -10 ---------- Run | Yrd Mat Min Sub Machines Disabled 1 | . 1 . . Max in Single Turn 1 | . 1 . . Machines Repaired . | . . . . Machines Dismantled . | . . . . Machines Sabotaged . | . . . . Overloaded Fab Kills . | . . . . Hacking | -11 -10 -10 -10 --------- Run | Yrd Mat Min Sub Machines Accessed 13 | . 9 1 3 Terminals 7 | . 7 . . Fabricators . | . . . . Repair Stations . | . . . . Recycling Units 2 | . 2 . . Scanalyzers . | . . . . Garrison Access . | . . . . Total Hacks 22 | . 15 1 6 Successful 21 | . 14 1 6 Failed 1 | . 1 . . Catastrophic . | . . . . Database Lockouts . | . . . . Manual 12 | . 12 . . Terminals 12 | . 12 . . Fabricators . | . . . . Repair Stations . | . . . . Recycling Units 3 | . 3 . . Scanalyzers . | . . . . Garrison Access . | . . . . Terminal Hacks 11 | . 4 1 6 Record 4 | . . . 4 Robot Analysis 1 | . 1 . . Open Door 2 | . . 1 1 Locate Traps 1 | . 1 . . Reprogram Traps 2 | . 2 . . Release Object 1 | . . . 1 Fabricator Hacks . | . . . . Repair Station Hacks . | . . . . Recycling Unit Hacks 1 | . 1 . . Retrieve Components 1 | . 1 . . Scanalyzer . | . . . . Garrison Access Hacks . | . . . . Unauthorized Hacks 9 | . 9 . . Terminals 7 | . 7 . . Botnet 7 | . 7 . . Fabricators . | . . . . Repair Stations . | . . . . Recycling Units 2 | . 2 . . Reject 2 | . 2 . . Scanalyzers . | . . . . Garrison Access . | . . . . Data Cores Recovered . | . . . . Used . | . . . . Hacking Detections 2 | . 2 . . Full Trace Events . | . . . . Feedback Events . | . . . . Feedback Blocked . | . . . . Robot Schematics Acquired . | . . . . Robots Built . | . . . . Authchips . | . . . . Time . | . . . . Total Robot Build Rating . | . . . . Part Schematics Acquired . | . . . . Parts Built . | . . . . Authchips . | . . . . Time . | . . . . Total Part Build Rating . | . . . . Part Studies Acquired . | . . . . Parts Repaired . | . . . . Time . | . . . . Parts Recycled . | . . . . Recycled Matter . | . . . . Retrieved Matter . | . . . . Retrieved Components 1 | . 1 . . Parts Scanalyzed . | . . . . Part Schematics Acquired . | . . . . Parts Damaged . | . . . . Bothacking | -11 -10 -10 -10 ------------ Run | Yrd Mat Min Sub Used RIF Installer . | . . . . Robots Hacked . | . . . . Non-combat . | . . . . Combat . | . . . . Robot Hacks Applied . | . . . . Relay Couplers Released . | . . . . Fabnet Peak Effective % . | . . . . Robots Rewired . | . . . . Allies Hacked . | . . . . Hacks Repelled . | . . . . Allies | -11 -10 -10 -10 -------- Run | Yrd Mat Min Sub Total Allies . | . . . . Largest Group . | . . . . Highest-Rated Group . | . . . . Highest-Rated Ally . | . . . . Total Orders 2 | . . . 2 EXPLORE 2 | . . . 2 Ally Attacks 7 | . . . 7 Total Damage 32 | . . . 32 Kills . | . . . . Allies Corrupted . | . . . . Allies Melted . | . . . . Intel | -11 -10 -10 -10 ------- Run | Yrd Mat Min Sub Active Infowar (turns) 5460 | . 942 1318 3200 Sensors 5460 | . 942 1318 3200 Robot Analysis Total 1 | . 1 . . Derelict Logs Recovered 3 | . . 1 2 Drone Launches 8 | . . . 8 Drone Recoveries 2 | . . . 2 Exploration | -11 -10 -10 -10 ------------- Run | Yrd Mat Min Sub Turns Passed 6667 | 138 1422 1318 3789 Spaces Moved 3104 | 68 731 733 1572 Core 20 | 20 . . . Treads 3084 | 48 731 733 1572 Legs . | . . . . Wheels . | . . . . Hover . | . . . . Flight . | . . . . Fastest Speed 50 | 50 160 160 160 Average Speed 185 | 140 160 160 211 Slowest Speed 260 | 160 160 160 260 Overloaded Moves . | . . . . Propulsion Burnouts . | . . . . Robots Hopped . | . . . . Potential Cave-ins . | . . . . Cave-ins Triggered . | . . . . Exploration Rate (%) 72 | 4 98 93 95 Regions Visited 3 Branch Regions 2 Pre-discovered Areas 3 | . . 1 2 Known Exits Taken 3 | 1 1 1 . Unknown Exits Taken . | . . . . Scrap Searched 5 | . . 1 4 Spaces Dug 1 | . 1 . . Terrain Destroyed 3 | . 2 . 1 Melee . | . . . . Projectile 3 | . 2 . 1 AOE . | . . . . Terrain Rammed . | . . . . Walls Destroyed . | . . . . Machines Disabled . | . . . . Actions | -11 -10 -10 -10 --------- Run | Yrd Mat Min Sub Total 3755 | 96 900 822 1937 Wait 426 | . 96 52 278 Move 3101 | 67 730 732 1572 Hop . | . . . . Pick Up 36 | 9 19 2 6 Fast Attach 6 | 1 4 1 . Attach 15 | 5 3 . 7 Detach 2 | . . . 2 Swap 11 | . 3 2 6 Drop 24 | . 8 4 12 Fire 134 | 14 37 29 54 Melee . | . . . . Ram . | . . . . Kick . | . . . . Crush . | . . . . Escape Stasis . | . . . . Rewire . | . . . . Trap . | . . . . Miscellaneous . | . . . . Route ------- -11/Scrapyard -10/Materials (discovered 5 exits: *Mat x3 / *Min x2) -10/Mines (discovered 2 exits: *Mat / *Sub) -10/Subcaves (discovered 3 exits: *Mat x2 / *Rec) History --------- Turn | Location | Event 17 | -11/Scrapyard | Identified exit to Materials 17 | -11/Scrapyard | Discovered exit to Materials (range 16) 139 | -11/Scrapyard | Entered Materials 139 | -10/Materials | Evolved 1 slot: Utility x1 309 | -10/Materials | Identified exit to Mines 309 | -10/Materials | Discovered exit to Mines (range 7) 316 | -10/Materials | Build established: Hacker-Mutant 374 | -10/Materials | Identified exit to Materials 374 | -10/Materials | Discovered exit to Materials (range 13) 651 | -10/Materials | Discovered exit to Materials (range 10) 731 | -10/Materials | Discovered exit to Mines (range 15) 886 | -10/Materials | Discovered exit to Materials (range 15) 1561 | -10/Materials | Entered Mines 1566 | -10/Mines | Found the Drone Emporium 1573 | -10/Mines | Found Prototype Device 1573 | -10/Mines | Identified Splice Drone Bay 1710 | -10/Mines | A weapon hastily lodged in a ceiling crevice suddenly fell to the ground 2012 | -10/Mines | Found a damaged Exp. Sensor Array with a note attached 2016 | -10/Mines | Found Prototype Device 2381 | -10/Mines | Core integrity fell below 50% 2390 | -10/Mines | Discovered exit to Materials (range 5) 2463 | -10/Mines | Learned location of Zion (-6) 2869 | -10/Mines | Identified exit to Subcaves 2869 | -10/Mines | Discovered exit to Subcaves (range 6) 2879 | -10/Mines | Entered Subcaves 2880 | -10/Subcaves | Shifting Twisted Machinery released Sub. Power Source 2994 | -10/Subcaves | Met a Zionite searching for "candidates" 3169 | -10/Subcaves | Learned Materials trap positions 3201 | -10/Subcaves | Ambushed by angry Subdweller bent on revenge 3559 | -10/Subcaves | Identified exit to Recycling 3559 | -10/Subcaves | Discovered exit to Recycling (range 12) 3623 | -10/Subcaves | Ambushed by Subdweller buried in earth 3700 | -10/Subcaves | Identified exit to Materials 3700 | -10/Subcaves | Discovered exit to Materials (range 85) 3762 | -10/Subcaves | Discovered exit to Materials (range 56) 3801 | -10/Subcaves | Lost 3 parts (1p1n1u) 3881 | -10/Subcaves | Shifting Twisted Machinery released Sub. Machine Gun 4130 | -10/Subcaves | Core integrity fell below 20% 4786 | -10/Subcaves | Shifting Twisted Machinery released Slug Cannon 4795 | -10/Subcaves | Shifting Twisted Machinery released Battle Rifle 4833 | -10/Subcaves | Visited Clippyterm 4838 | -10/Subcaves | Learned Factory trap positions 4972 | -10/Subcaves | Found SUBCON Basin 5297 | -10/Subcaves | Shifting Twisted Machinery released Sub. Monowheel 6413 | -10/Subcaves | Visited 4L-MR0's lab 6668 | -10/Subcaves | Destroyed by Q3-7WD(R) with Subdweller Machine Gun Last Messages --------------- Source. 06368_ Searching scrap... 06368_ Found Sub. Machine Gun. 06368_ Found Spk. Treads. 06368_ Found 45 Matter. 06373_ Dropped Spk. Treads. 06397_ Searching scrap... 06397_ Found Mak. Hammer. 06397_ Found Sub. Laser. 06397_ Found 58 Matter. 06398_ Acquired 10 matter. 06402_ Triggered Piercing Trap. 06402_ Spikes shoot up from the floor. 06402_ Critical hit (Impale). 06418_ 4L-MR0: "What, already? Ugh, fine! Just take it and go! I only just finished this one... Can't you folks let me experiment with them a little longer before you take them away? 06662_ Lgt. Nuclear Core destroyed. Map ----- +----------------------------------------------------+ | ?????????# #### | | ?????????## ### ## | | ?????????## #### ## ###### | | ?????????# #??## ### < #????## | | ?????????#### ## #???######### #????# | | ????????????### ### #?????# ##?#####????## | | ?????????????## ### ## #?????? ##?????????## | | ?????????????# ###### ##??????? ##?????????# | | ????????????#### ### ####?????????# #####?????# | | ????????????# ## #?????###???# #?????? | | ????????????# ## #?????# ##?## #?????? | | ????????????## ##?# #????## ### ##?????? | | ?????????????## #???##???## ####??????# | | ??????????????# #???????## #????????## | | ??????????????# ##?????## #??????### | | ??????????????# ####??# #??????# | | ??????????????# ##?## ##????#### | | ??????????????## #??## # #?##### ## | | ???????????????## ##?### ### ### ## | | ???????????????## ###?## ### | | ??????????????## ##???#" # # | | ?????????????## ###?##### ##### | | ?????????????# ##??## ## ##### ### | | ?????????????# ##???# ""# # ### ##?# ### | | ?????????????# #?#### "" #??## #?? | | ?????????????# ###" " " @ #???# #?? | | ?????????????# """""" ;# # ##??# ? | | ????????????## "" "" ###### ##???# # | | ????????????# ##"" " #????## ##????## # | | ????????????# ## ## ##?????###??????# # | | ????????????# #####" R##??????????????? ## | | ????????????# #???#" #????????????????### ## #? | | ????????????# ##?## ##?????????????????###?# #? | | ????????????# #?# #??????????????????????##? | | ????????????## ##?# ##????????????????????????? | | ????????????## #### ##????????????????????????? | | ???????????## ## #????????????????????????? | | ??????????## #????????????????????????? | | ?????###### #????????????????????????? | | ?????#" ##" ##????????????????????????? | | ?????# # #?????????????????????????? | | ?????# ##"#" #?????????????????????????? | | ?????# $### #????????????????????????? | | ?????#"$?# #????????????????????????? | | ?????##### ### #????????????????????????? | | ?????????# #?# #????????????????????????? | | ?????????########?## ##????????????????????????? | | ????????????????????####?????????????????????????? | | ?????????????????????????????????????????????????? | | ?????????????????????????????????????????????????? | +----------------------------------------------------+ Best States ------------- Heat Dissipation 25 Energy Generation 14 Energy Capacity 250 Matter Stores 300 Matter Capacity 300 Sight Range 16 Robot Scan Range 14 Terrain Scan Density 10 Armor Coverage 150 Resistance: KI 35 Resistance: TH 35 Resistance: EX 35 Resistance: EM 35 Resistance: I 35 Resistance: S 35 Resistance: P 35 Core Shielding 20 Evasion (%) 40 Recoil Reduction 2 Offensive Hacking 20 Item Schematics ----------------- None Robot Schematics ------------------ None Fabricated ------------ Nothing Repaired ---------- Nothing Studied --------- None Alien Tech Used ----------------- None Achievements -------------- None Challenges ------------ None Game ------ Seed SalvagingDamperRedirector Manual? 0 Play Time 00:21:07 Cumulative 267.7 hours Start 2026.01.08 @ 16:55:36 End 2026.01.08 @ 17:15:53 Sessions 1 Manual Loads 0 Difficulty Explorer Special Mode None Game No. 417 Rogue 0 Adventurer 0 Explorer 417 Win Type - Total 0 Types 0/0/0/0/0/0/0/0/0/0 Lore% 72 Gallery% 69 Achievement% 54 Wizard Run 0 Options --------- Layout 1 ASCII 0 Keyboard 0 Movement Mouse Keybinds 0 Fullscreen 1 Font 24/Smallcaps Map View 50x35 Zoom Use 0% Tactical HUD 1 Map Filters NONE Filters NONE Steam 1 RUN: b78e3825-610f-476b-8326-77aca801bffa